[Event "January 2 Late 2024"]
[Site "https://www.chess.com"]
[Date "2024.01.02"]
[Round "8"]
[White "Niedbala, Bartlomiej"]
[Black "Tao, Sihan"]
[Result "1-0"]
[Board "70"]
[TimeControl "180+1"]
[WhiteFideId "21834008"]
[BlackFideId "30982677"]
[WhiteElo "2649"]
[BlackElo "2522"]
[WhiteTeam "POL"]
[BlackTeam "USA"]
[WhiteClock "0:01:38"]
[BlackClock "0:01:57"]

1. d4 {[%clk 0:03:00]}  Nf6 {[%clk 0:02:59]} 2. c4 {[%clk 0:02:59]}  e6 {[%clk 0:02:59]} 3. Nf3 {[%clk 0:02:56]}  d5 {[%clk 0:02:58]} 4. g3 {[%clk 0:02:54]}  Be7 {[%clk 0:02:55]} 5. Bg2 {[%clk 0:02:54]}  O-O {[%clk 0:02:56]} 6. O-O {[%clk 0:02:55]}  dxc4 {[%clk 0:02:56]} 7. Qc2 {[%clk 0:02:54]}  a6 {[%clk 0:02:56]} 8. Qxc4 {[%clk 0:02:48]}  b5 {[%clk 0:02:55]} 9. Qc2 {[%clk 0:02:48]}  Bb7 {[%clk 0:02:55]} 10. Bd2 {[%clk 0:02:47]}  Be4 {[%clk 0:02:55]} 11. Qc1 {[%clk 0:02:45]}  c6 {[%clk 0:02:55]} 12. Nc3 {[%clk 0:02:45]}  Bg6 {[%clk 0:02:56]} 13. Rd1 {[%clk 0:02:39]}  Qb6 {[%clk 0:02:51]} 14. a4 {[%clk 0:02:31]}  Nbd7 {[%clk 0:02:45]} 15. Nh4 {[%clk 0:02:23]}  Rac8 {[%clk 0:02:40]} 16. Nxg6 {[%clk 0:02:23]}  hxg6 {[%clk 0:02:41]} 17. Be1 {[%clk 0:02:06]}  c5 {[%clk 0:02:36]} 18. d5 {[%clk 0:01:52]}  exd5 {[%clk 0:02:28]} 19. Nxd5 {[%clk 0:01:53]}  Nxd5 {[%clk 0:02:28]} 20. Bxd5 {[%clk 0:01:52]}  Nf6 {[%clk 0:02:26]} 21. Bf3 {[%clk 0:01:52]}  Rfd8 {[%clk 0:02:24]} 22. Rxd8+ {[%clk 0:01:51]}  Rxd8 {[%clk 0:02:24]} 23. axb5 {[%clk 0:01:52]}  axb5 {[%clk 0:02:24]} 24. Ba5 {[%clk 0:01:51]}  Qd6 {[%clk 0:02:13]} 25. Bxd8 {[%clk 0:01:49]}  Bxd8 {[%clk 0:02:14]} 26. Qd1 {[%clk 0:01:47]}  Qxd1+ {[%clk 0:02:10]} 27. Rxd1 {[%clk 0:01:47]}  Be7 {[%clk 0:02:11]} 28. Bc6 {[%clk 0:01:46]}  b4 {[%clk 0:02:10]} 29. b3 {[%clk 0:01:46]}  Kf8 {[%clk 0:02:09]} 30. e4 {[%clk 0:01:47]}  Ne8 {[%clk 0:02:06]} 31. e5 {[%clk 0:01:44]}  Nc7 {[%clk 0:02:07]} 32. f4 {[%clk 0:01:39]}  Ne6 {[%clk 0:02:06]} 33. Ra1 {[%clk 0:01:39]}  Nd4 {[%clk 0:02:06]} 34. Bd5 {[%clk 0:01:39]}  Ne2+ {[%clk 0:01:58]} 35. Kf2 {[%clk 0:01:36]}  Nc3 {[%clk 0:01:59]} 36. Ra8+ {[%clk 0:01:37]}  Bd8 {[%clk 0:01:59]} 37. Rxd8+ {[%clk 0:01:37]}  Ke7 {[%clk 0:01:57]} 38. Rd6 {[%clk 0:01:38]} 1-0

[Event "January 2 Late 2024"]
[Site "https://www.chess.com"]
[Date "2024.01.02"]
[Round "8"]
[White "Spata, German"]
[Black "Dinu, Dumitru-Daniel"]
[Result "1-0"]
[Board "71"]
[TimeControl "180+1"]
[WhiteFideId "113026"]
[BlackFideId "1208403"]
[WhiteElo "2647"]
[BlackElo "2522"]
[WhiteTeam "ARG"]
[BlackTeam "ROU"]
[WhiteClock "0:00:16"]
[BlackClock "0:00:11"]

1. d4 {[%clk 0:02:50]}  Nf6 {[%clk 0:02:58]} 2. Bf4 {[%clk 0:02:50]}  e6 {[%clk 0:02:57]} 3. e3 {[%clk 0:02:50]}  d5 {[%clk 0:02:54]} 4. Nf3 {[%clk 0:02:51]}  c5 {[%clk 0:02:54]} 5. c3 {[%clk 0:02:51]}  Nc6 {[%clk 0:02:54]} 6. Nbd2 {[%clk 0:02:51]}  cxd4 {[%clk 0:02:55]} 7. exd4 {[%clk 0:02:48]}  Nh5 {[%clk 0:02:55]} 8. Bg3 {[%clk 0:02:45]}  Nxg3 {[%clk 0:02:51]} 9. hxg3 {[%clk 0:02:45]}  Bd6 {[%clk 0:02:51]} 10. Bd3 {[%clk 0:02:45]}  h6 {[%clk 0:02:51]} 11. Qe2 {[%clk 0:02:44]}  a6 {[%clk 0:02:45]} 12. a4 {[%clk 0:02:40]}  Qc7 {[%clk 0:02:39]} 13. Nb3 {[%clk 0:02:36]}  Na5 {[%clk 0:02:29]} 14. Nxa5 {[%clk 0:02:28]}  Qxa5 {[%clk 0:02:28]} 15. O-O {[%clk 0:02:23]}  O-O {[%clk 0:02:26]} 16. Ne5 {[%clk 0:02:17]}  Qc7 {[%clk 0:02:19]} 17. f4 {[%clk 0:02:16]}  Bd7 {[%clk 0:02:08]} 18. Bc2 {[%clk 0:02:10]}  Bxe5 {[%clk 0:02:00]} 19. fxe5 {[%clk 0:02:09]}  f5 {[%clk 0:02:00]} 20. exf6 {[%clk 0:02:07]}  Qxg3 {[%clk 0:01:56]} 21. Rf3 {[%clk 0:01:50]}  Qg4 {[%clk 0:01:12]} 22. Qd3 {[%clk 0:01:46]}  Qe4 {[%clk 0:01:04]} 23. Qd2 {[%clk 0:01:15]}  Qg4 {[%clk 0:00:55]} 24. Raf1 {[%clk 0:01:13]}  Rf7 {[%clk 0:00:41]} 25. Qd3 {[%clk 0:01:05]}  Qe4 {[%clk 0:00:27]} 26. Qxe4 {[%clk 0:00:59]}  dxe4 {[%clk 0:00:28]} 27. Bxe4 {[%clk 0:01:00]}  Bxa4 {[%clk 0:00:23]} 28. Rg3 {[%clk 0:00:50]}  Raf8 {[%clk 0:00:17]} 29. Rxg7+ {[%clk 0:00:49]}  Rxg7 {[%clk 0:00:17]} 30. fxg7 {[%clk 0:00:49]}  Rxf1+ {[%clk 0:00:18]} 31. Kxf1 {[%clk 0:00:50]}  b6 {[%clk 0:00:13]} 32. Kf2 {[%clk 0:00:42]}  Kxg7 {[%clk 0:00:13]} 33. Kf3 {[%clk 0:00:43]}  Kf6 {[%clk 0:00:13]} 34. Kf4 {[%clk 0:00:43]}  Bd7 {[%clk 0:00:13]} 35. g3 {[%clk 0:00:42]}  a5 {[%clk 0:00:12]} 36. Bd3 {[%clk 0:00:40]}  b5 {[%clk 0:00:12]} 37. Bc2 {[%clk 0:00:36]}  b4 {[%clk 0:00:12]} 38. cxb4 {[%clk 0:00:29]}  axb4 {[%clk 0:00:13]} 39. Ke3 {[%clk 0:00:29]}  Bc6 {[%clk 0:00:11]} 40. Be4 {[%clk 0:00:26]}  Bb5 {[%clk 0:00:09]} 41. Bd3 {[%clk 0:00:27]}  Bc6 {[%clk 0:00:08]} 42. Bc4 {[%clk 0:00:27]}  Kf5 {[%clk 0:00:06]} 43. Bb3 {[%clk 0:00:25]}  Bd5 {[%clk 0:00:05]} 44. Bc2+ {[%clk 0:00:18]}  Kg4 {[%clk 0:00:05]} 45. Kf2 {[%clk 0:00:18]}  h5 {[%clk 0:00:06]} 46. Bd1+ {[%clk 0:00:18]}  Kg5 {[%clk 0:00:06]} 47. Ke3 {[%clk 0:00:19]}  h4 {[%clk 0:00:05]} 48. gxh4+ {[%clk 0:00:18]}  Kxh4 {[%clk 0:00:06]} 49. Kf4 {[%clk 0:00:19]}  Bc4 {[%clk 0:00:04]} 50. Ke5 {[%clk 0:00:18]}  Kg3 {[%clk 0:00:04]} 51. Bh5 {[%clk 0:00:14]}  Kf2 {[%clk 0:00:04]} 52. Bg4 {[%clk 0:00:12]}  Ke3 {[%clk 0:00:05]} 53. Bh3 {[%clk 0:00:10]}  Bd5 {[%clk 0:00:05]} 54. Bg4 {[%clk 0:00:11]}  Bc4 {[%clk 0:00:05]} 55. Bh3 {[%clk 0:00:11]}  Bd5 {[%clk 0:00:05]} 56. Bf1 {[%clk 0:00:11]}  Kf2 {[%clk 0:00:04]} 57. Bb5 {[%clk 0:00:11]}  Ke3 {[%clk 0:00:04]} 58. Ba6 {[%clk 0:00:11]}  Bb3 {[%clk 0:00:03]} 59. Bc8 {[%clk 0:00:11]}  Bd5 {[%clk 0:00:03]} 60. Bd7 {[%clk 0:00:12]}  Bb3 {[%clk 0:00:03]} 61. Bc6 {[%clk 0:00:12]}  Bc4 {[%clk 0:00:03]} 62. Bd7 {[%clk 0:00:12]}  Kd2 {[%clk 0:00:03]} 63. Bxe6 {[%clk 0:00:12]}  Bxe6 {[%clk 0:00:04]} 64. Kxe6 {[%clk 0:00:13]}  Kc2 {[%clk 0:00:05]} 65. d5 {[%clk 0:00:13]}  Kxb2 {[%clk 0:00:05]} 66. d6 {[%clk 0:00:14]}  Ka2 {[%clk 0:00:06]} 67. d7 {[%clk 0:00:15]}  b3 {[%clk 0:00:07]} 68. d8=Q {[%clk 0:00:16]}  b2 {[%clk 0:00:08]} 69. Qa5+ {[%clk 0:00:16]}  Kb1 {[%clk 0:00:08]} 70. Kd5 {[%clk 0:00:16]}  Kc2 {[%clk 0:00:09]} 71. Qc5+ {[%clk 0:00:15]}  Kd2 {[%clk 0:00:09]} 72. Qd4+ {[%clk 0:00:16]}  Kc1 {[%clk 0:00:10]} 73. Qc3+ {[%clk 0:00:16]}  Kb1 {[%clk 0:00:11]} 74. Kc4 {[%clk 0:00:16]}  Ka2 {[%clk 0:00:12]} 75. Qa5+ {[%clk 0:00:16]}  Kb1 {[%clk 0:00:12]} 76. Kb3 {[%clk 0:00:16]}  Kc1 {[%clk 0:00:11]} 77. Qe1# {[%clk 0:00:16]} 1-0

[Event "January 2 Late 2024"]
[Site "https://www.chess.com"]
[Date "2024.01.02"]
[Round "8"]
[White "Ozates, Tuna"]
[Black "N_Mullodzhanov"]
[Result "1/2-1/2"]
[Board "72"]
[TimeControl "180+1"]
[WhiteFideId "6354521"]
[WhiteElo "2638"]
[BlackElo "2518"]
[WhiteTeam "TUR"]
[WhiteClock "0:00:03"]
[BlackClock "0:00:02"]

1. e4 {[%clk 0:03:00]}  c6 {[%clk 0:02:59]} 2. Nf3 {[%clk 0:03:01]}  d5 {[%clk 0:02:59]} 3. d3 {[%clk 0:03:01]}  dxe4 {[%clk 0:03:00]} 4. dxe4 {[%clk 0:03:02]}  Qxd1+ {[%clk 0:03:00]} 5. Kxd1 {[%clk 0:03:02]}  Nf6 {[%clk 0:03:01]} 6. Nfd2 {[%clk 0:03:02]}  Ng4 {[%clk 0:03:01]} 7. Ke1 {[%clk 0:03:01]}  h5 {[%clk 0:02:57]} 8. Nc4 {[%clk 0:03:00]}  b5 {[%clk 0:02:56]} 9. Ne3 {[%clk 0:02:59]}  Ne5 {[%clk 0:02:55]} 10. a4 {[%clk 0:02:58]}  Bd7 {[%clk 0:02:53]} 11. axb5 {[%clk 0:02:57]}  cxb5 {[%clk 0:02:54]} 12. Nd5 {[%clk 0:02:57]}  Kd8 {[%clk 0:02:50]} 13. Nb6 {[%clk 0:02:57]}  axb6 {[%clk 0:02:46]} 14. Rxa8 {[%clk 0:02:58]}  Kc7 {[%clk 0:02:47]} 15. Bf4 {[%clk 0:02:58]}  f6 {[%clk 0:02:39]} 16. Nc3 {[%clk 0:02:55]}  Bc6 {[%clk 0:02:37]} 17. Nxb5+ {[%clk 0:02:52]}  Kb7 {[%clk 0:02:37]} 18. Ra7+ {[%clk 0:02:51]}  Kc8 {[%clk 0:02:35]} 19. f3 {[%clk 0:02:48]}  Ned7 {[%clk 0:02:24]} 20. Nd4 {[%clk 0:02:34]}  Bb7 {[%clk 0:02:21]} 21. Ne6 {[%clk 0:02:32]}  Nc6 {[%clk 0:02:20]} 22. Ra3 {[%clk 0:02:27]}  g5 {[%clk 0:02:19]} 23. Be3 {[%clk 0:02:27]}  Bh6 {[%clk 0:02:14]} 24. Ba6 {[%clk 0:02:27]}  Bxa6 {[%clk 0:02:12]} 25. Rxa6 {[%clk 0:02:27]}  Kb7 {[%clk 0:02:09]} 26. Ra3 {[%clk 0:02:27]}  Nb4 {[%clk 0:02:08]} 27. Kd2 {[%clk 0:02:22]}  Ne5 {[%clk 0:02:06]} 28. b3 {[%clk 0:02:17]}  Rc8 {[%clk 0:02:04]} 29. c4 {[%clk 0:02:11]}  Rxc4 {[%clk 0:01:42]} 30. bxc4 {[%clk 0:02:09]}  Nxc4+ {[%clk 0:01:43]} 31. Kc3 {[%clk 0:02:09]}  Nxa3 {[%clk 0:01:43]} 32. Kxb4 {[%clk 0:02:08]}  Nc2+ {[%clk 0:01:43]} 33. Kb5 {[%clk 0:02:08]}  Nxe3 {[%clk 0:01:44]} 34. Rc1 {[%clk 0:02:05]}  g4 {[%clk 0:01:32]} 35. Rc7+ {[%clk 0:02:04]}  Kb8 {[%clk 0:01:31]} 36. Kxb6 {[%clk 0:02:01]}  Nxg2 {[%clk 0:01:28]} 37. Rd7 {[%clk 0:01:52]}  Be3+ {[%clk 0:01:27]} 38. Kc6 {[%clk 0:01:50]}  Bf4 {[%clk 0:01:14]} 39. fxg4 {[%clk 0:01:39]}  hxg4 {[%clk 0:01:13]} 40. Rxe7 {[%clk 0:01:39]}  Bxh2 {[%clk 0:01:10]} 41. Nf8 {[%clk 0:01:30]}  Ne3 {[%clk 0:00:42]} 42. Nd7+ {[%clk 0:01:25]}  Ka7 {[%clk 0:00:41]} 43. Nc5+ {[%clk 0:01:20]}  Ka8 {[%clk 0:00:21]} 44. Nd7 {[%clk 0:01:02]}  Ka7 {[%clk 0:00:15]} 45. Nxf6+ {[%clk 0:01:02]}  Ka6 {[%clk 0:00:14]} 46. Nd5 {[%clk 0:00:59]}  Nc4 {[%clk 0:00:09]} 47. Kc5 {[%clk 0:00:45]}  Bd6+ {[%clk 0:00:03]} 48. Kxc4 {[%clk 0:00:45]}  Bxe7 {[%clk 0:00:03]} 49. Nxe7 {[%clk 0:00:46]}  g3 {[%clk 0:00:03]} 50. e5 {[%clk 0:00:09]}  g2 {[%clk 0:00:04]} 51. Kd5 {[%clk 0:00:09]}  g1=Q {[%clk 0:00:05]} 52. e6 {[%clk 0:00:09]}  Qg5+ {[%clk 0:00:05]} 53. Kd6 {[%clk 0:00:09]}  Kb7 {[%clk 0:00:05]} 54. Nd5 {[%clk 0:00:08]}  Qd8+ {[%clk 0:00:05]} 55. Ke5 {[%clk 0:00:08]}  Qh8+ {[%clk 0:00:05]} 56. Kd6 {[%clk 0:00:08]}  Qh6 {[%clk 0:00:04]} 57. Kd7 {[%clk 0:00:07]}  Qd2 {[%clk 0:00:03]} 58. Kd6 {[%clk 0:00:07]}  Qh6 {[%clk 0:00:01]} 59. Kd7 {[%clk 0:00:07]}  Qh3 {[%clk 0:00:01]} 60. Kd6 {[%clk 0:00:04]}  Qg3+ {[%clk 0:00:02]} 61. Kd7 {[%clk 0:00:05]}  Qg4 {[%clk 0:00:01]} 62. Nf6 {[%clk 0:00:04]}  Qd4+ {[%clk 0:00:01]} 63. Ke7 {[%clk 0:00:04]}  Qc5+ {[%clk 0:00:02]} 64. Kf7 {[%clk 0:00:04]}  Qc4 {[%clk 0:00:02]} 65. Ne8 {[%clk 0:00:03]}  Qf4+ {[%clk 0:00:01]} 66. Ke7 {[%clk 0:00:03]}  Qe5 {[%clk 0:00:02]} 67. Nd6+ {[%clk 0:00:03]}  Kc6 {[%clk 0:00:02]} 68. Nf7 {[%clk 0:00:03]}  Qf5 {[%clk 0:00:02]} 69. Nd8+ {[%clk 0:00:03]}  Kc7 {[%clk 0:00:02]} 70. Nf7 {[%clk 0:00:03]}  Qf4 {[%clk 0:00:02]} 71. Kf8 {[%clk 0:00:02]}  Qf6 {[%clk 0:00:01]} 72. e7 {[%clk 0:00:02]}  Qh4 {[%clk 0:00:01]} 73. e8=Q {[%clk 0:00:02]}  Qb4+ {[%clk 0:00:01]} 74. Kg8 {[%clk 0:00:03]}  Qg4+ {[%clk 0:00:01]} 75. Kh7 {[%clk 0:00:02]}  Qh5+ {[%clk 0:00:01]} 76. Kg7 {[%clk 0:00:02]}  Qg4+ {[%clk 0:00:01]} 77. Kf6 {[%clk 0:00:03]}  Qf4+ {[%clk 0:00:01]} 78. Kg6 {[%clk 0:00:02]}  Qc4 {[%clk 0:00:01]} 79. Qe7+ {[%clk 0:00:02]}  Kb6 {[%clk 0:00:01]} 80. Qd6+ {[%clk 0:00:02]}  Qc6 {[%clk 0:00:01]} 81. Kf5 {[%clk 0:00:02]}  Qxd6 {[%clk 0:00:02]} 82. Nxd6 {[%clk 0:00:03]} 1/2-1/2

[Event "January 2 Late 2024"]
[Site "https://www.chess.com"]
[Date "2024.01.02"]
[Round "8"]
[White "Veljanoski, Andrej"]
[Black "Play, Gilles"]
[Result "0-1"]
[Board "74"]
[TimeControl "180+1"]
[WhiteFideId "15003604"]
[BlackFideId "45130892"]
[WhiteElo "2624"]
[BlackElo "2513"]
[WhiteTeam "MKD"]
[BlackTeam "FRA"]
[WhiteClock "0:01:17"]
[BlackClock "0:01:26"]

1. Nf3 {[%clk 0:03:00]}  c5 {[%clk 0:02:58]} 2. c4 {[%clk 0:03:01]}  Nc6 {[%clk 0:02:57]} 3. g3 {[%clk 0:03:01]}  e5 {[%clk 0:02:57]} 4. d3 {[%clk 0:03:00]}  g6 {[%clk 0:02:54]} 5. Bg2 {[%clk 0:02:59]}  Bg7 {[%clk 0:02:54]} 6. Nc3 {[%clk 0:02:57]}  f5 {[%clk 0:02:51]} 7. O-O {[%clk 0:02:45]}  Nf6 {[%clk 0:02:51]} 8. e4 {[%clk 0:02:42]}  d6 {[%clk 0:02:50]} 9. a3 {[%clk 0:02:33]}  O-O {[%clk 0:02:46]} 10. exf5 {[%clk 0:02:31]}  Bxf5 {[%clk 0:02:44]} 11. Bg5 {[%clk 0:02:29]}  Qd7 {[%clk 0:02:39]} 12. Qd2 {[%clk 0:02:18]}  Bh3 {[%clk 0:02:30]} 13. Bxf6 {[%clk 0:01:59]}  Rxf6 {[%clk 0:02:29]} 14. Ne4 {[%clk 0:01:59]}  Rff8 {[%clk 0:02:13]} 15. Nfg5 {[%clk 0:01:41]}  Bxg2 {[%clk 0:02:10]} 16. Kxg2 {[%clk 0:01:41]}  Nd4 {[%clk 0:02:09]} 17. h4 {[%clk 0:01:38]}  h6 {[%clk 0:01:49]} 18. Nh3 {[%clk 0:01:36]}  Nb3 {[%clk 0:01:39]} 19. Qe3 {[%clk 0:01:33]}  Nxa1 {[%clk 0:01:39]} 20. Rxa1 {[%clk 0:01:34]}  Rf7 {[%clk 0:01:37]} 21. b4 {[%clk 0:01:33]}  b6 {[%clk 0:01:35]} 22. b5 {[%clk 0:01:27]}  Raf8 {[%clk 0:01:34]} 23. Nc3 {[%clk 0:01:26]}  e4 {[%clk 0:01:26]} 24. dxe4 {[%clk 0:01:17]}  Rf3 {[%clk 0:01:26]} 0-1

[Event "January 2 Late 2024"]
[Site "https://www.chess.com"]
[Date "2024.01.02"]
[Round "8"]
[White "Brown_Mamba24"]
[Black "Horak, Martin"]
[Result "1-0"]
[Board "75"]
[TimeControl "180+1"]
[BlackFideId "367095"]
[WhiteElo "2622"]
[BlackElo "2513"]
[BlackTeam "CZE"]
[WhiteClock "0:00:03"]
[BlackClock "0:00:00"]

1. d4 {[%clk 0:03:00]}  d5 {[%clk 0:02:58]} 2. Nf3 {[%clk 0:03:00]}  Nf6 {[%clk 0:02:58]} 3. c4 {[%clk 0:03:01]}  e6 {[%clk 0:02:57]} 4. g3 {[%clk 0:03:01]}  Bb4+ {[%clk 0:02:31]} 5. Bd2 {[%clk 0:03:01]}  Be7 {[%clk 0:02:31]} 6. Qc2 {[%clk 0:03:01]}  O-O {[%clk 0:02:29]} 7. Bg2 {[%clk 0:03:01]}  Nbd7 {[%clk 0:02:29]} 8. O-O {[%clk 0:03:02]}  c6 {[%clk 0:02:28]} 9. a4 {[%clk 0:03:02]}  a5 {[%clk 0:02:26]} 10. Rc1 {[%clk 0:03:02]}  b6 {[%clk 0:02:23]} 11. cxd5 {[%clk 0:03:02]}  cxd5 {[%clk 0:02:22]} 12. Na3 {[%clk 0:03:02]}  Ba6 {[%clk 0:02:19]} 13. Nb5 {[%clk 0:03:02]}  Rc8 {[%clk 0:02:11]} 14. Qd1 {[%clk 0:03:02]}  Bxb5 {[%clk 0:01:55]} 15. axb5 {[%clk 0:03:02]}  Ne4 {[%clk 0:01:54]} 16. Be1 {[%clk 0:03:03]}  Bd6 {[%clk 0:01:49]} 17. e3 {[%clk 0:03:03]}  Ndf6 {[%clk 0:01:45]} 18. Ne5 {[%clk 0:02:45]}  Bxe5 {[%clk 0:01:42]} 19. dxe5 {[%clk 0:02:46]}  Nd7 {[%clk 0:01:41]} 20. Rxc8 {[%clk 0:02:17]}  Qxc8 {[%clk 0:01:41]} 21. b4 {[%clk 0:02:18]}  axb4 {[%clk 0:01:19]} 22. Bxb4 {[%clk 0:02:19]}  Nec5 {[%clk 0:01:18]} 23. Bc3 {[%clk 0:01:45]}  Qb7 {[%clk 0:01:17]} 24. Bd4 {[%clk 0:01:40]}  Ra8 {[%clk 0:01:16]} 25. h4 {[%clk 0:01:23]}  Ra7 {[%clk 0:01:15]} 26. h5 {[%clk 0:01:21]}  h6 {[%clk 0:01:13]} 27. Qg4 {[%clk 0:01:05]}  Rxa1+ {[%clk 0:01:12]} 28. Bxa1 {[%clk 0:01:06]}  Qa7 {[%clk 0:01:08]} 29. Bd4 {[%clk 0:01:05]}  Qa5 {[%clk 0:01:02]} 30. Bf1 {[%clk 0:00:57]}  Qd2 {[%clk 0:00:46]} 31. Qe2 {[%clk 0:00:52]}  Qc1 {[%clk 0:00:45]} 32. Qb2 {[%clk 0:00:49]}  Qe1 {[%clk 0:00:33]} 33. Kg2 {[%clk 0:00:36]}  Ne4 {[%clk 0:00:31]} 34. Bd3 {[%clk 0:00:24]}  Ndc5 {[%clk 0:00:29]} 35. Bxc5 {[%clk 0:00:17]}  Nxc5 {[%clk 0:00:28]} 36. Be2 {[%clk 0:00:13]}  Ne4 {[%clk 0:00:22]} 37. Bd3 {[%clk 0:00:13]}  Nc5 {[%clk 0:00:16]} 38. Be2 {[%clk 0:00:10]}  Kf8 {[%clk 0:00:14]} 39. Qc2 {[%clk 0:00:10]}  Ke7 {[%clk 0:00:13]} 40. Bf3 {[%clk 0:00:08]}  Qa1 {[%clk 0:00:12]} 41. Qh7 {[%clk 0:00:05]}  Qxe5 {[%clk 0:00:11]} 42. Qh8 {[%clk 0:00:05]}  Nd3 {[%clk 0:00:09]} 43. Qc8 {[%clk 0:00:04]}  Ne1+ {[%clk 0:00:09]} 44. Kf1 {[%clk 0:00:04]}  Nxf3 {[%clk 0:00:10]} 45. Qb7+ {[%clk 0:00:03]}  Kf6 {[%clk 0:00:10]} 46. Qxb6 {[%clk 0:00:04]}  Qf5 {[%clk 0:00:07]} 47. Kg2 {[%clk 0:00:04]}  Nd2 {[%clk 0:00:06]} 48. Qd8+ {[%clk 0:00:04]}  Ke5 {[%clk 0:00:04]} 49. b6 {[%clk 0:00:03]}  Ne4 {[%clk 0:00:00]} 50. f4+ {[%clk 0:00:03]} 1-0

[Event "January 2 Late 2024"]
[Site "https://www.chess.com"]
[Date "2024.01.02"]
[Round "8"]
[White "Sztokbant, Bernardo Vainzoff"]
[Black "Titus, Andrew"]
[Result "1-0"]
[Board "78"]
[TimeControl "180+1"]
[WhiteFideId "2115956"]
[BlackFideId "2059770"]
[WhiteElo "2483"]
[BlackElo "2611"]
[WhiteTeam "BRA"]
[BlackTeam "USA"]
[WhiteClock "0:00:06"]
[BlackClock "0:00:03"]

1. d4 {[%clk 0:02:58]}  d5 {[%clk 0:02:58]} 2. c4 {[%clk 0:02:58]}  e6 {[%clk 0:02:58]} 3. Nc3 {[%clk 0:02:58]}  Nf6 {[%clk 0:02:58]} 4. Nf3 {[%clk 0:02:55]}  Be7 {[%clk 0:02:50]} 5. Bf4 {[%clk 0:02:48]}  O-O {[%clk 0:02:44]} 6. e3 {[%clk 0:02:48]}  Nbd7 {[%clk 0:02:43]} 7. cxd5 {[%clk 0:02:38]}  Nxd5 {[%clk 0:02:41]} 8. Nxd5 {[%clk 0:02:36]}  exd5 {[%clk 0:02:42]} 9. Bd3 {[%clk 0:02:36]}  c5 {[%clk 0:02:31]} 10. O-O {[%clk 0:02:35]}  cxd4 {[%clk 0:02:29]} 11. Nxd4 {[%clk 0:02:35]}  Nc5 {[%clk 0:02:27]} 12. Bc2 {[%clk 0:02:31]}  Bf6 {[%clk 0:02:23]} 13. Rc1 {[%clk 0:02:20]}  Ne6 {[%clk 0:02:17]} 14. Qd3 {[%clk 0:02:01]}  g6 {[%clk 0:02:13]} 15. Bh6 {[%clk 0:02:01]}  Re8 {[%clk 0:02:01]} 16. Nxe6 {[%clk 0:01:51]}  Bxe6 {[%clk 0:01:57]} 17. Bb3 {[%clk 0:01:40]}  Bxb2 {[%clk 0:01:53]} 18. Rcd1 {[%clk 0:01:41]}  Be5 {[%clk 0:01:50]} 19. f4 {[%clk 0:01:11]}  Bf6 {[%clk 0:01:48]} 20. f5 {[%clk 0:00:58]}  Bxf5 {[%clk 0:01:44]} 21. Rxf5 {[%clk 0:00:57]}  gxf5 {[%clk 0:01:45]} 22. Qxf5 {[%clk 0:00:49]}  Re5 {[%clk 0:01:42]} 23. Qg4+ {[%clk 0:00:47]}  Kh8 {[%clk 0:01:40]} 24. Bf4 {[%clk 0:00:41]}  Re8 {[%clk 0:01:20]} 25. Rxd5 {[%clk 0:00:36]}  Qc8 {[%clk 0:01:05]} 26. Qh5 {[%clk 0:00:30]}  Qc1+ {[%clk 0:00:59]} 27. Rd1 {[%clk 0:00:25]}  Qb2 {[%clk 0:00:56]} 28. Bxf7 {[%clk 0:00:19]}  Re7 {[%clk 0:00:37]} 29. Rf1 {[%clk 0:00:18]}  Rf8 {[%clk 0:00:35]} 30. Bb3 {[%clk 0:00:14]}  Rg7 {[%clk 0:00:33]} 31. Bg3 {[%clk 0:00:10]}  Be7 {[%clk 0:00:23]} 32. Rxf8+ {[%clk 0:00:10]}  Bxf8 {[%clk 0:00:24]} 33. Qd5 {[%clk 0:00:08]}  Qa1+ {[%clk 0:00:21]} 34. Kf2 {[%clk 0:00:07]}  Qf6+ {[%clk 0:00:22]} 35. Ke2 {[%clk 0:00:07]}  Qa6+ {[%clk 0:00:16]} 36. Bc4 {[%clk 0:00:06]}  Qg6 {[%clk 0:00:14]} 37. Be5 {[%clk 0:00:03]}  Qh5+ {[%clk 0:00:04]} 38. Kd2 {[%clk 0:00:03]}  Qxe5 {[%clk 0:00:03]} 39. Qxe5 {[%clk 0:00:03]}  h6 {[%clk 0:00:03]} 40. Qd5 {[%clk 0:00:02]}  b6 {[%clk 0:00:02]} 41. e4 {[%clk 0:00:02]}  Bc5 {[%clk 0:00:02]} 42. e5 {[%clk 0:00:03]}  Kh7 {[%clk 0:00:03]} 43. e6 {[%clk 0:00:03]}  Be7 {[%clk 0:00:03]} 44. Bd3+ {[%clk 0:00:04]}  Kh8 {[%clk 0:00:03]} 45. Qf5 {[%clk 0:00:04]}  Bg5+ {[%clk 0:00:04]} 46. Ke2 {[%clk 0:00:04]}  Kg8 {[%clk 0:00:04]} 47. g3 {[%clk 0:00:04]}  Be7 {[%clk 0:00:03]} 48. Kf3 {[%clk 0:00:04]}  Bf8 {[%clk 0:00:04]} 49. Ke4 {[%clk 0:00:04]}  Rg5 {[%clk 0:00:03]} 50. Qf7+ {[%clk 0:00:04]}  Kh8 {[%clk 0:00:03]} 51. Qxf8+ {[%clk 0:00:04]}  Kh7 {[%clk 0:00:02]} 52. e7 {[%clk 0:00:05]}  h5 {[%clk 0:00:02]} 53. Kf4+ {[%clk 0:00:06]}  Rg6 {[%clk 0:00:03]} 54. Qf7+ {[%clk 0:00:05]}  Kh8 {[%clk 0:00:03]} 55. e8=Q+ {[%clk 0:00:06]}  Rg8 {[%clk 0:00:03]} 56. Qexg8# {[%clk 0:00:06]} 1-0

[Event "January 2 Late 2024"]
[Site "https://www.chess.com"]
[Date "2024.01.02"]
[Round "8"]
[White "Xie, Bryan"]
[Black "Ambartsumova, Karina"]
[Result "0-1"]
[Board "79"]
[TimeControl "180+1"]
[WhiteFideId "30941296"]
[BlackFideId "4166299"]
[WhiteElo "2447"]
[BlackElo "2611"]
[WhiteTeam "USA"]
[BlackTeam "RUS"]
[WhiteClock "0:00:00"]
[BlackClock "0:00:20"]

1. e4 {[%clk 0:02:43]}  e5 {[%clk 0:02:59]} 2. Nf3 {[%clk 0:02:43]}  Nc6 {[%clk 0:03:00]} 3. Bc4 {[%clk 0:02:42]}  Nf6 {[%clk 0:02:59]} 4. d3 {[%clk 0:02:41]}  h6 {[%clk 0:02:59]} 5. c3 {[%clk 0:02:39]}  d6 {[%clk 0:02:59]} 6. a4 {[%clk 0:02:37]}  g5 {[%clk 0:02:58]} 7. O-O {[%clk 0:02:34]}  Bg7 {[%clk 0:02:58]} 8. Re1 {[%clk 0:02:34]}  g4 {[%clk 0:02:50]} 9. Nfd2 {[%clk 0:02:33]}  d5 {[%clk 0:02:47]} 10. exd5 {[%clk 0:02:34]}  Nxd5 {[%clk 0:02:48]} 11. d4 {[%clk 0:02:32]}  O-O {[%clk 0:02:46]} 12. dxe5 {[%clk 0:02:32]}  Nxe5 {[%clk 0:02:47]} 13. Bxd5 {[%clk 0:02:24]}  Qxd5 {[%clk 0:02:46]} 14. Ne4 {[%clk 0:02:25]}  Qxd1 {[%clk 0:02:26]} 15. Rxd1 {[%clk 0:02:23]}  Bf5 {[%clk 0:02:26]} 16. Ng3 {[%clk 0:02:06]}  Bc2 {[%clk 0:02:26]} 17. Rd2 {[%clk 0:01:58]}  Bg6 {[%clk 0:02:26]} 18. Na3 {[%clk 0:01:50]}  h5 {[%clk 0:01:52]} 19. Rd1 {[%clk 0:01:33]}  h4 {[%clk 0:01:38]} 20. Ne2 {[%clk 0:01:30]}  h3 {[%clk 0:01:38]} 21. Nf4 {[%clk 0:01:13]}  Be4 {[%clk 0:01:38]} 22. f3 {[%clk 0:00:33]}  gxf3 {[%clk 0:01:36]} 23. gxh3 {[%clk 0:00:33]}  Bh6 {[%clk 0:01:12]} 24. Kf2 {[%clk 0:00:21]}  Kh7 {[%clk 0:01:12]} 25. Be3 {[%clk 0:00:16]}  Rae8 {[%clk 0:01:01]} 26. Nh5 {[%clk 0:00:13]}  Re6 {[%clk 0:00:52]} 27. Bxh6 {[%clk 0:00:08]}  Kxh6 {[%clk 0:00:44]} 28. Ng3 {[%clk 0:00:08]}  f5 {[%clk 0:00:31]} 29. Nxe4 {[%clk 0:00:06]}  fxe4 {[%clk 0:00:31]} 30. Ke3 {[%clk 0:00:05]}  f2 {[%clk 0:00:27]} 31. Nc2 {[%clk 0:00:01]}  Nc4+ {[%clk 0:00:21]} 32. Ke2 {[%clk 0:00:02]}  Nxb2 {[%clk 0:00:21]} 33. Rf1 {[%clk 0:00:02]}  Nd3 {[%clk 0:00:20]} 34. Nd4 {[%clk 0:00:02]}  Rg6 {[%clk 0:00:19]} 35. Rab1 {[%clk 0:00:03]}  b6 {[%clk 0:00:19]} 36. a5 {[%clk 0:00:03]}  c5 {[%clk 0:00:19]} 37. Nc2 {[%clk 0:00:02]}  Rfg8 {[%clk 0:00:17]} 38. axb6 {[%clk 0:00:02]}  axb6 {[%clk 0:00:18]} 39. Ne3 {[%clk 0:00:03]}  Rg1 {[%clk 0:00:18]} 40. Rxb6+ {[%clk 0:00:03]}  Kh5 {[%clk 0:00:18]} 41. Rc6 {[%clk 0:00:03]}  Rxf1 {[%clk 0:00:18]} 42. Kxf1 {[%clk 0:00:04]}  Rg1+ {[%clk 0:00:18]} 43. Ke2 {[%clk 0:00:04]}  Re1+ {[%clk 0:00:18]} 44. Kd2 {[%clk 0:00:05]}  Rxe3 {[%clk 0:00:18]} 45. Rf6 {[%clk 0:00:03]}  Rf3 {[%clk 0:00:19]} 46. Rxf3 {[%clk 0:00:00]}  exf3 {[%clk 0:00:20]} 0-1